[Event "*** SCC Grand Prix: Titled Tuesday Blitz"]
[Site "Chess.com"]
[Date "2020.06.02"]
[Round "5"]
[White "RitvarsReimanis"]
[Black "Evgeny81"]
[Result "0-1"]
[WhiteElo "2535"]
[BlackElo "2719"]
[TimeControl "180+1"]
[EndTime "10:58:14 PDT"]
[Termination "Evgeny81 won on time"]

1. d4 {[%clk 0:02:51.6]} 1... Nf6 {[%clk 0:03:00.1]} 2. c4 {[%clk 0:02:51.4]}
2... e6 {[%clk 0:03:00.7]} 3. Nf3 {[%clk 0:02:50.7]} 3... Bb4+ {[%clk
0:03:00.7]} 4. Bd2 {[%clk 0:02:51]} 4... Qe7 {[%clk 0:03:00.8]} 5. g3 {[%clk
0:02:51.2]} 5... Bxd2+ {[%clk 0:02:58.6]} 6. Nbxd2 {[%clk 0:02:52.1]} 6... d6
{[%clk 0:02:58.1]} 7. Bg2 {[%clk 0:02:53]} 7... O-O {[%clk 0:02:58.1]} 8. e4
{[%clk 0:02:52.8]} 8... e5 {[%clk 0:02:57.5]} 9. d5 {[%clk 0:02:53.3]} 9... a5
{[%clk 0:02:57.5]} 10. O-O {[%clk 0:02:53.3]} 10... Na6 {[%clk 0:02:55.8]} 11.
Ne1 {[%clk 0:02:52.6]} 11... Nc5 {[%clk 0:02:51.7]} 12. Qc2 {[%clk 0:02:48]}
12... Nfd7 {[%clk 0:02:36.3]} 13. Nb3 {[%clk 0:02:39.4]} 13... g6 {[%clk
0:02:27.2]} 14. Nd3 {[%clk 0:02:38]} 14... Nxd3 {[%clk 0:02:23.8]} 15. Qxd3
{[%clk 0:02:37.8]} 15... a4 {[%clk 0:02:23.1]} 16. Nd2 {[%clk 0:02:28.5]} 16...
f5 {[%clk 0:02:23.3]} 17. exf5 {[%clk 0:02:20.3]} 17... Nc5 {[%clk 0:02:20.8]}
18. Qe2 {[%clk 0:02:18.2]} 18... Bxf5 {[%clk 0:02:20]} 19. Ne4 {[%clk
0:02:15.4]} 19... Bxe4 {[%clk 0:02:14.3]} 20. Bxe4 {[%clk 0:02:16.3]} 20... Rf6
{[%clk 0:02:07.3]} 21. Rab1 {[%clk 0:02:15.8]} 21... Raf8 {[%clk 0:02:02.1]} 22.
b3 {[%clk 0:02:15.2]} 22... axb3 {[%clk 0:02:01.2]} 23. axb3 {[%clk 0:02:16.1]}
23... Qf7 {[%clk 0:01:39.7]} 24. Bg2 {[%clk 0:02:10.5]} 24... Qg7 {[%clk
0:01:30.8]} 25. b4 {[%clk 0:02:03.2]} 25... Nd7 {[%clk 0:01:31]} 26. Bh3 {[%clk
0:01:52.6]} 26... Kh8 {[%clk 0:01:30.7]} 27. Ra1 {[%clk 0:01:42.5]} 27... e4
{[%clk 0:01:11]} 28. Bxd7 {[%clk 0:01:36]} 28... Qxd7 {[%clk 0:01:10.1]} 29.
Qxe4 {[%clk 0:01:36.3]} 29... Qh3 {[%clk 0:01:05.2]} 30. Qd4 {[%clk 0:01:21.9]}
30... Kg8 {[%clk 0:01:02.7]} 31. Ra7 {[%clk 0:01:14.8]} 31... Rf4 {[%clk
0:00:53.4]} 32. Qd3 {[%clk 0:00:28.2]} 32... Rh4 {[%clk 0:00:52.5]} 33. gxh4
{[%clk 0:00:15.1]} 33... Qxd3 {[%clk 0:00:52.1]} 34. Rxb7 {[%clk 0:00:12.8]}
34... Qxc4 {[%clk 0:00:51.6]} 35. Re1 {[%clk 0:00:10.2]} 35... Qxh4 {[%clk
0:00:45.7]} 36. Re2 {[%clk 0:00:07.9]} 36... Qc4 {[%clk 0:00:36.9]} 37. Re7
{[%clk 0:00:04.7]} 37... Qc1+ {[%clk 0:00:36.9]} 0-1

[Event "*** SCC Grand Prix: Titled Tuesday Blitz"]
[Site "Chess.com"]
[Date "2020.06.02"]
[Round "5"]
[White "robertxbob"]
[Black "ChelsieMonica"]
[Result "0-1"]
[WhiteElo "2193"]
[BlackElo "2455"]
[TimeControl "180+1"]
[EndTime "10:58:14 PDT"]
[Termination "ChelsieMonica won on time"]

1. d4 {[%clk 0:02:59.9]} 1... Nf6 {[%clk 0:02:59.4]} 2. c4 {[%clk 0:02:59.4]}
2... e6 {[%clk 0:02:58.1]} 3. Nc3 {[%clk 0:02:55]} 3... Bb4 {[%clk 0:02:57.9]}
4. a3 {[%clk 0:02:54.5]} 4... Bxc3+ {[%clk 0:02:56.1]} 5. bxc3 {[%clk
0:02:55.1]} 5... d5 {[%clk 0:02:56.6]} 6. e3 {[%clk 0:02:51.6]} 6... O-O {[%clk
0:02:55.6]} 7. f3 {[%clk 0:02:51.4]} 7... c5 {[%clk 0:02:54.7]} 8. cxd5 {[%clk
0:02:49.2]} 8... exd5 {[%clk 0:02:53.1]} 9. Bd3 {[%clk 0:02:49.1]} 9... b6
{[%clk 0:02:20.6]} 10. Ne2 {[%clk 0:02:45.8]} 10... Ba6 {[%clk 0:02:19.9]} 11.
O-O {[%clk 0:02:44.9]} 11... Bxd3 {[%clk 0:02:15.3]} 12. Qxd3 {[%clk 0:02:44.4]}
12... Nc6 {[%clk 0:02:15.7]} 13. Ng3 {[%clk 0:02:43.2]} 13... Na5 {[%clk
0:02:13.8]} 14. Ra2 {[%clk 0:02:38.7]} 14... Rc8 {[%clk 0:02:09.8]} 15. Re2
{[%clk 0:02:34.4]} 15... Re8 {[%clk 0:02:05]} 16. e4 {[%clk 0:02:31.6]} 16...
dxe4 {[%clk 0:02:02.3]} 17. fxe4 {[%clk 0:02:31.6]} 17... cxd4 {[%clk 0:01:24]}
18. cxd4 {[%clk 0:02:30.6]} 18... Ng4 {[%clk 0:01:21]} 19. Nf5 {[%clk
0:01:55.6]} 19... Ne5 {[%clk 0:01:01.5]} 20. Qg3 {[%clk 0:01:49]} 20... Ng6
{[%clk 0:01:01.4]} 21. h4 {[%clk 0:01:26.1]} 21... h5 {[%clk 0:00:52.3]} 22. Nd6
{[%clk 0:00:56.6]} 22... Nc4 {[%clk 0:00:52.3]} 23. Nxe8 {[%clk 0:00:37]} 23...
Qxd4+ {[%clk 0:00:46.7]} 24. Qf2 {[%clk 0:00:20.6]} 24... Qxf2+ {[%clk
0:00:46.3]} 25. Rexf2 {[%clk 0:00:20.5]} 25... Rxe8 {[%clk 0:00:47]} 26. Rxf7
{[%clk 0:00:20.1]} 26... Rxe4 {[%clk 0:00:44.3]} 27. Rxa7 {[%clk 0:00:20]} 27...
Nxh4 {[%clk 0:00:37.9]} 28. Rff7 {[%clk 0:00:18.5]} 28... Rg4 {[%clk 0:00:37.9]}
29. Rf2 {[%clk 0:00:14.9]} 29... Ne5 {[%clk 0:00:34.5]} 30. Kf1 {[%clk
0:00:13.6]} 30... Nd3 {[%clk 0:00:32]} 31. Rc2 {[%clk 0:00:13.5]} 31... Nf5
{[%clk 0:00:27.3]} 32. Ra8+ {[%clk 0:00:11.2]} 32... Kh7 {[%clk 0:00:27.4]} 33.
a4 {[%clk 0:00:09.5]} 33... Ng3+ {[%clk 0:00:27]} 34. Kg1 {[%clk 0:00:08.8]}
34... Rh4 {[%clk 0:00:25.6]} 0-1

[Event "*** SCC Grand Prix: Titled Tuesday Blitz"]
[Site "Chess.com"]
[Date "2020.06.02"]
[Round "5"]
[White "Muradore"]
[Black "Ceejay271"]
[Result "1-0"]
[WhiteElo "2611"]
[BlackElo "2410"]
[TimeControl "180+1"]
[EndTime "10:58:16 PDT"]
[Termination "Muradore won on time"]

1. e4 {[%clk 0:02:59.8]} 1... c5 {[%clk 0:02:59]} 2. c3 {[%clk 0:02:58.4]} 2...
Nf6 {[%clk 0:02:58.2]} 3. e5 {[%clk 0:02:58.3]} 3... Nd5 {[%clk 0:02:57.1]} 4.
g3 {[%clk 0:02:58.9]} 4... d6 {[%clk 0:02:51.4]} 5. exd6 {[%clk 0:02:59.8]} 5...
e6 {[%clk 0:02:47.7]} 6. Nf3 {[%clk 0:03:00.7]} 6... Bxd6 {[%clk 0:02:46.7]} 7.
Bg2 {[%clk 0:03:01.3]} 7... O-O {[%clk 0:02:47.1]} 8. O-O {[%clk 0:03:01.8]}
8... Nc6 {[%clk 0:02:47.1]} 9. Na3 {[%clk 0:03:01.9]} 9... b6 {[%clk 0:02:41.4]}
10. Nc4 {[%clk 0:03:01.9]} 10... Ba6 {[%clk 0:02:37.4]} 11. d3 {[%clk
0:03:01.9]} 11... Bc7 {[%clk 0:02:34.5]} 12. a4 {[%clk 0:03:01.8]} 12... Rc8
{[%clk 0:02:20]} 13. Re1 {[%clk 0:03:00]} 13... Re8 {[%clk 0:02:09]} 14. Qb3
{[%clk 0:02:56.6]} 14... Qd7 {[%clk 0:01:53.2]} 15. h4 {[%clk 0:02:46]} 15...
Bb8 {[%clk 0:01:45.8]} 16. Bd2 {[%clk 0:02:45.1]} 16... Nde7 {[%clk 0:01:42.4]}
17. Qc2 {[%clk 0:02:34.6]} 17... Nf5 {[%clk 0:01:33.6]} 18. Rad1 {[%clk
0:02:31.5]} 18... Red8 {[%clk 0:01:28.1]} 19. Bc1 {[%clk 0:02:31.3]} 19... Bb7
{[%clk 0:01:15.5]} 20. h5 {[%clk 0:02:26.4]} 20... h6 {[%clk 0:01:13.3]} 21. g4
{[%clk 0:02:26.1]} 21... Nd6 {[%clk 0:01:12.9]} 22. g5 {[%clk 0:02:23.9]} 22...
hxg5 {[%clk 0:01:02.4]} 23. Bxg5 {[%clk 0:02:23.8]} 23... f6 {[%clk 0:01:01.6]}
24. Bc1 {[%clk 0:02:23.7]} 24... Nxc4 {[%clk 0:01:00.2]} 25. dxc4 {[%clk
0:02:24.6]} 25... Qf7 {[%clk 0:00:59.9]} 26. h6 {[%clk 0:02:23.9]} 26... g6
{[%clk 0:00:53.1]} 27. Rxd8+ {[%clk 0:02:17.9]} 27... Rxd8 {[%clk 0:00:52.8]}
28. Qe2 {[%clk 0:02:06.4]} 28... Ne5 {[%clk 0:00:47.8]} 29. Nxe5 {[%clk
0:01:56.8]} 29... Bxe5 {[%clk 0:00:48.7]} 30. Bxb7 {[%clk 0:01:49.9]} 30... Qxb7
{[%clk 0:00:47.4]} 31. Qg4 {[%clk 0:01:48.3]} 31... Qf7 {[%clk 0:00:43]} 32. Rd1
{[%clk 0:01:48.2]} 32... Rxd1+ {[%clk 0:00:38.4]} 33. Qxd1 {[%clk 0:01:48.3]}
33... Kh7 {[%clk 0:00:35.7]} 34. a5 {[%clk 0:01:44.5]} 34... g5 {[%clk
0:00:34.3]} 35. a6 {[%clk 0:01:39.9]} 35... Kxh6 {[%clk 0:00:32.7]} 36. Qd8
{[%clk 0:01:38.4]} 36... Qh5 {[%clk 0:00:27.6]} 37. Be3 {[%clk 0:01:36.9]} 37...
Qg4+ {[%clk 0:00:20]} 38. Kf1 {[%clk 0:01:36.4]} 38... Kg6 {[%clk 0:00:18.2]}
39. Qd3+ {[%clk 0:01:28.6]} 39... Qf5 {[%clk 0:00:16.9]} 40. Qd7 {[%clk
0:01:24.2]} 40... Qb1+ {[%clk 0:00:15.4]} 41. Ke2 {[%clk 0:01:24.2]} 41... Qxb2+
{[%clk 0:00:15.4]} 42. Kf3 {[%clk 0:01:24.4]} 42... Qxc3 {[%clk 0:00:13.9]} 43.
Qxe6 {[%clk 0:01:24.2]} 43... Qa3 {[%clk 0:00:09.3]} 44. Qe8+ {[%clk 0:01:22.6]}
44... Kh6 {[%clk 0:00:08.9]} 45. Qf8+ {[%clk 0:01:22.3]} 45... Kg6 {[%clk
0:00:09.1]} 46. Qe8+ {[%clk 0:01:18.4]} 46... Kh6 {[%clk 0:00:09]} 47. Kg4
{[%clk 0:01:13.9]} 47... Qxa6 {[%clk 0:00:07.8]} 48. Kf5 {[%clk 0:01:12.5]}
48... Kg7 {[%clk 0:00:06.4]} 49. Qe7+ {[%clk 0:01:12.3]} 49... Kg8 {[%clk
0:00:06.3]} 50. Kg6 {[%clk 0:01:12.5]} 1-0

[Event "*** SCC Grand Prix: Titled Tuesday Blitz"]
[Site "Chess.com"]
[Date "2020.06.02"]
[Round "5"]
[White "Siemba"]
[Black "tapu2"]
[Result "1-0"]
[WhiteElo "2395"]
[BlackElo "2522"]
[TimeControl "180+1"]
[EndTime "10:58:16 PDT"]
[Termination "Siemba won on time"]

1. e4 {[%clk 0:03:00.9]} 1... c5 {[%clk 0:02:59.1]} 2. Nf3 {[%clk 0:03:01.2]}
2... d6 {[%clk 0:02:58.2]} 3. d4 {[%clk 0:03:01.7]} 3... cxd4 {[%clk 0:02:58.1]}
4. Nxd4 {[%clk 0:03:02.6]} 4... Nf6 {[%clk 0:02:58.4]} 5. Nc3 {[%clk 0:03:03]}
5... a6 {[%clk 0:02:58.1]} 6. Bg5 {[%clk 0:03:03.5]} 6... e6 {[%clk 0:02:57.1]}
7. f4 {[%clk 0:03:03.7]} 7... Be7 {[%clk 0:02:57.6]} 8. Qf3 {[%clk 0:03:04]}
8... Qc7 {[%clk 0:02:57.6]} 9. O-O-O {[%clk 0:03:04.3]} 9... Nbd7 {[%clk
0:02:57.4]} 10. g4 {[%clk 0:03:04.8]} 10... b5 {[%clk 0:02:56.6]} 11. Bxf6
{[%clk 0:03:04.8]} 11... Nxf6 {[%clk 0:02:57.5]} 12. g5 {[%clk 0:03:03.9]} 12...
Nd7 {[%clk 0:02:57.1]} 13. f5 {[%clk 0:03:04.7]} 13... O-O {[%clk 0:02:56.8]}
14. Qh5 {[%clk 0:02:52.4]} 14... b4 {[%clk 0:02:29.7]} 15. Rd3 {[%clk
0:02:51.9]} 15... bxc3 {[%clk 0:02:29.2]} 16. Rxc3 {[%clk 0:02:52.8]} 16... Qb6
{[%clk 0:02:14.8]} 17. Nc6 {[%clk 0:02:42]} 17... Bxg5+ {[%clk 0:01:14.1]} 18.
Qxg5 {[%clk 0:02:41.8]} 18... Ne5 {[%clk 0:01:11.4]} 19. f6 {[%clk 0:01:29.9]}
19... Ng6 {[%clk 0:01:05.4]} 20. Ne7+ {[%clk 0:01:30.2]} 20... Kh8 {[%clk
0:01:04.1]} 21. Rh3 {[%clk 0:01:30.7]} 21... Qc5 {[%clk 0:00:28.3]} 22. fxg7+
{[%clk 0:00:43.8]} 22... Kxg7 {[%clk 0:00:26.2]} 23. Qh6+ {[%clk 0:00:44.5]}
23... Kf6 {[%clk 0:00:25.5]} 24. Nxg6 {[%clk 0:00:45.3]} 24... hxg6 {[%clk
0:00:12]} 25. Qxf8 {[%clk 0:00:45.1]} 25... Qf2 {[%clk 0:00:10.6]} 26. Qd8+
{[%clk 0:00:43.4]} 26... Ke5 {[%clk 0:00:09.5]} 27. Qg5+ {[%clk 0:00:33.4]}
27... Kd4 {[%clk 0:00:08.8]} 28. Rd3+ {[%clk 0:00:32.5]} 28... Kc4 {[%clk
0:00:06.4]} 29. b3+ {[%clk 0:00:32.2]} 1-0

[Event "*** SCC Grand Prix: Titled Tuesday Blitz"]
[Site "Chess.com"]
[Date "2020.06.02"]
[Round "5"]
[White "allvim"]
[Black "Quiet_Desperation"]
[Result "0-1"]
[WhiteElo "2308"]
[BlackElo "2090"]
[TimeControl "180+1"]
[EndTime "10:58:16 PDT"]
[Termination "Quiet_Desperation won by resignation"]

1. e4 {[%clk 0:03:00.9]} 1... e6 {[%clk 0:02:13.6]} 2. d4 {[%clk 0:03:00.3]}
2... d5 {[%clk 0:02:13.5]} 3. Nd2 {[%clk 0:03:00.3]} 3... Nf6 {[%clk 0:02:13.6]}
4. e5 {[%clk 0:03:00.7]} 4... Nfd7 {[%clk 0:02:13.9]} 5. Bd3 {[%clk 0:03:01.4]}
5... c5 {[%clk 0:02:14.1]} 6. c3 {[%clk 0:03:02.1]} 6... Nc6 {[%clk 0:02:14.6]}
7. Ne2 {[%clk 0:03:02.1]} 7... cxd4 {[%clk 0:02:14.5]} 8. cxd4 {[%clk 0:03:03]}
8... f6 {[%clk 0:02:14.5]} 9. exf6 {[%clk 0:03:03.9]} 9... Nxf6 {[%clk
0:02:14.8]} 10. Nf3 {[%clk 0:03:04.5]} 10... Bd6 {[%clk 0:02:14.8]} 11. O-O
{[%clk 0:03:05]} 11... Qc7 {[%clk 0:02:15.1]} 12. g3 {[%clk 0:03:05.7]} 12...
O-O {[%clk 0:01:47.3]} 13. Bf4 {[%clk 0:03:05]} 13... Ng4 {[%clk 0:01:44.7]} 14.
Bxd6 {[%clk 0:02:35.1]} 14... Qxd6 {[%clk 0:01:41.8]} 15. Nf4 {[%clk 0:02:35.5]}
15... Rxf4 {[%clk 0:01:37.8]} 16. gxf4 {[%clk 0:02:36.4]} 16... Qxf4 {[%clk
0:01:37.6]} 17. h3 {[%clk 0:02:16.5]} 17... e5 {[%clk 0:01:03.3]} 18. hxg4
{[%clk 0:00:41]} 18... Bxg4 {[%clk 0:01:00.6]} 19. Be2 {[%clk 0:00:40.5]} 19...
Bh3 {[%clk 0:00:33.3]} 20. Kh1 {[%clk 0:00:19.1]} 20... Bxf1 {[%clk 0:00:18.8]}
21. Qxf1 {[%clk 0:00:20]} 21... Rf8 {[%clk 0:00:17.2]} 22. dxe5 {[%clk
0:00:16.4]} 22... Nxe5 {[%clk 0:00:12.3]} 23. Nxe5 {[%clk 0:00:16.9]} 23... Qxe5
{[%clk 0:00:13.1]} 24. Re1 {[%clk 0:00:09.5]} 24... Rf6 {[%clk 0:00:12.4]} 25.
f4 {[%clk 0:00:04.4]} 25... Rh6+ {[%clk 0:00:11.6]} 26. Kg1 {[%clk 0:00:03.9]}
26... Qe3+ {[%clk 0:00:11.4]} 27. Qf2 {[%clk 0:00:04.6]} 27... Rh1+ {[%clk
0:00:11.2]} 28. Kg2 {[%clk 0:00:05.2]} 28... Rh2+ {[%clk 0:00:10.7]} 29. Kxh2
{[%clk 0:00:05.3]} 29... Qxf2+ {[%clk 0:00:11.3]} 30. Kh3 {[%clk 0:00:05.3]}
30... Qxe1 {[%clk 0:00:11.6]} 0-1

[Event "*** SCC Grand Prix: Titled Tuesday Blitz"]
[Site "Chess.com"]
[Date "2020.06.02"]
[Round "5"]
[White "adriangschnitzer"]
[Black "Kezin_Roman"]
[Result "0-1"]
[WhiteElo "2462"]
[BlackElo "2696"]
[TimeControl "180+1"]
[EndTime "10:58:17 PDT"]
[Termination "Kezin_Roman won by resignation"]

1. e4 {[%clk 0:03:00.9]} 1... c5 {[%clk 0:02:59.2]} 2. Nf3 {[%clk 0:03:00.2]}
2... e6 {[%clk 0:02:59.6]} 3. d4 {[%clk 0:02:58.7]} 3... cxd4 {[%clk 0:03:00.5]}
4. Nxd4 {[%clk 0:02:59.5]} 4... Nc6 {[%clk 0:03:00.8]} 5. Nc3 {[%clk 0:02:59.4]}
5... Qc7 {[%clk 0:03:01.1]} 6. Be3 {[%clk 0:02:59.5]} 6... a6 {[%clk 0:03:00.7]}
7. Bd3 {[%clk 0:02:58.9]} 7... Nf6 {[%clk 0:03:00.2]} 8. O-O {[%clk 0:02:55]}
8... Nxd4 {[%clk 0:03:00]} 9. Bxd4 {[%clk 0:02:54.7]} 9... Bc5 {[%clk
0:03:00.3]} 10. Be2 {[%clk 0:02:53.9]} 10... d6 {[%clk 0:03:00.2]} 11. a4 {[%clk
0:02:47]} 11... e5 {[%clk 0:02:58.8]} 12. Bxc5 {[%clk 0:02:44.6]} 12... Qxc5
{[%clk 0:02:59.7]} 13. a5 {[%clk 0:02:40.3]} 13... Be6 {[%clk 0:02:56.8]} 14.
Qd2 {[%clk 0:02:28.1]} 14... O-O {[%clk 0:02:51.8]} 15. Kh1 {[%clk 0:02:10.8]}
15... Rac8 {[%clk 0:02:48.4]} 16. f4 {[%clk 0:02:08.5]} 16... exf4 {[%clk
0:02:42.7]} 17. Rxf4 {[%clk 0:01:59.7]} 17... Rfe8 {[%clk 0:02:28.5]} 18. Raf1
{[%clk 0:01:57.2]} 18... Qxa5 {[%clk 0:02:18.1]} 19. Rxf6 {[%clk 0:01:38.2]}
19... gxf6 {[%clk 0:02:19]} 20. Rxf6 {[%clk 0:01:37.7]} 20... Qe5 {[%clk
0:02:19.4]} 21. Qh6 {[%clk 0:01:21.3]} 21... Kh8 {[%clk 0:02:09.5]} 22. Bh5
{[%clk 0:00:41.2]} 22... Rc7 {[%clk 0:01:48.2]} 23. h3 {[%clk 0:00:38.2]} 23...
Rg8 {[%clk 0:01:46.9]} 24. Bf3 {[%clk 0:00:25.4]} 24... Qg5 {[%clk 0:01:23.5]}
25. Rxe6 {[%clk 0:00:19.6]} 25... fxe6 {[%clk 0:01:24.4]} 26. Qxe6 {[%clk
0:00:20.2]} 26... Qe5 {[%clk 0:01:25.1]} 27. Qh6 {[%clk 0:00:17.8]} 27... Rcg7
{[%clk 0:01:24.6]} 28. Nd5 {[%clk 0:00:16.8]} 28... Rf8 {[%clk 0:01:18.8]} 29.
Ne3 {[%clk 0:00:14.3]} 29... Qf4 {[%clk 0:01:18.1]} 30. Qxf4 {[%clk 0:00:08.4]}
30... Rxf4 {[%clk 0:01:19]} 31. Nf5 {[%clk 0:00:08.1]} 31... Rc7 {[%clk
0:01:18]} 32. c3 {[%clk 0:00:05.4]} 32... d5 {[%clk 0:01:16.5]} 33. Nd4 {[%clk
0:00:01.5]} 33... dxe4 {[%clk 0:01:14.8]} 34. Be2 {[%clk 0:00:02]} 34... Rf6
{[%clk 0:01:11.5]} 35. Kh2 {[%clk 0:00:02.1]} 35... Re7 {[%clk 0:01:06.2]} 36.
Kg3 {[%clk 0:00:03]} 36... Rg7+ {[%clk 0:01:06.5]} 37. Kh2 {[%clk 0:00:02.4]}
37... Rf2 {[%clk 0:01:06.2]} 38. Bg4 {[%clk 0:00:02.4]} 38... h5 {[%clk
0:01:05.9]} 39. Kg3 {[%clk 0:00:02.8]} 39... Rxb2 {[%clk 0:01:05.8]} 40. Ne6
{[%clk 0:00:02.8]} 40... hxg4 {[%clk 0:01:05.8]} 41. Nxg7 {[%clk 0:00:02.9]}
41... Kxg7 {[%clk 0:01:06.7]} 42. Kxg4 {[%clk 0:00:03.8]} 42... Rxg2+ {[%clk
0:01:06.3]} 43. Kf4 {[%clk 0:00:03.4]} 43... Rh2 {[%clk 0:01:06.6]} 44. Kxe4
{[%clk 0:00:04.3]} 44... Rxh3 {[%clk 0:01:07]} 45. Kd4 {[%clk 0:00:04.5]} 45...
Rh5 {[%clk 0:01:07.8]} 0-1

[Event "*** SCC Grand Prix: Titled Tuesday Blitz"]
[Site "Chess.com"]
[Date "2020.06.02"]
[Round "5"]
[White "awesomevishesh"]
[Black "Bhagya_2312"]
[Result "1-0"]
[WhiteElo "2452"]
[BlackElo "2152"]
[TimeControl "180+1"]
[EndTime "10:58:17 PDT"]
[Termination "awesomevishesh won on time"]

1. d4 {[%clk 0:02:58.7]} 1... d5 {[%clk 0:02:59.4]} 2. c4 {[%clk 0:02:56.7]}
2... e6 {[%clk 0:02:59]} 3. Nf3 {[%clk 0:02:55.5]} 3... Nf6 {[%clk 0:02:58.1]}
4. g3 {[%clk 0:02:55.6]} 4... Bb4+ {[%clk 0:02:57.6]} 5. Nbd2 {[%clk 0:02:55.2]}
5... dxc4 {[%clk 0:02:53.6]} 6. Bg2 {[%clk 0:02:50.9]} 6... O-O {[%clk
0:02:52.8]} 7. Qc2 {[%clk 0:02:50.1]} 7... Nc6 {[%clk 0:02:48.1]} 8. Qxc4 {[%clk
0:02:48.2]} 8... a6 {[%clk 0:02:20.6]} 9. O-O {[%clk 0:02:43.3]} 9... Be7 {[%clk
0:02:12.4]} 10. b3 {[%clk 0:02:31.1]} 10... Bd7 {[%clk 0:02:03.4]} 11. Bb2
{[%clk 0:02:30.4]} 11... Nb4 {[%clk 0:01:54.3]} 12. Qc1 {[%clk 0:02:20.4]} 12...
Rb8 {[%clk 0:01:33.5]} 13. a3 {[%clk 0:02:18.5]} 13... Nc6 {[%clk 0:01:31.4]}
14. Nc4 {[%clk 0:02:14.3]} 14... b5 {[%clk 0:01:11.4]} 15. Nce5 {[%clk
0:02:12.5]} 15... Na5 {[%clk 0:01:11.4]} 16. Qc2 {[%clk 0:01:57.6]} 16... Be8
{[%clk 0:01:07.3]} 17. Rfd1 {[%clk 0:01:56.5]} 17... Rc8 {[%clk 0:01:03.6]} 18.
b4 {[%clk 0:01:55.5]} 18... Nb7 {[%clk 0:00:59.7]} 19. Nc6 {[%clk 0:01:48.9]}
19... Bxc6 {[%clk 0:00:57]} 20. Qxc6 {[%clk 0:01:48.9]} 20... Nd6 {[%clk
0:00:55.5]} 21. Ne5 {[%clk 0:01:49]} 21... Qe8 {[%clk 0:00:24.6]} 22. Qxa6
{[%clk 0:01:39.8]} 22... Nd5 {[%clk 0:00:24.7]} 23. Qc6 {[%clk 0:01:29.3]} 23...
Nc4 {[%clk 0:00:19]} 24. Qxe8 {[%clk 0:01:20.1]} 24... Rfxe8 {[%clk 0:00:19.1]}
25. Nxc4 {[%clk 0:01:17.6]} 25... bxc4 {[%clk 0:00:18.6]} 26. Rac1 {[%clk
0:01:17.5]} 26... Nb6 {[%clk 0:00:18.6]} 27. Bc6 {[%clk 0:01:16.4]} 27... Red8
{[%clk 0:00:17.8]} 28. e4 {[%clk 0:00:50.9]} 28... Rd6 {[%clk 0:00:16.4]} 29. b5
{[%clk 0:00:49.1]} 29... Na4 {[%clk 0:00:15.6]} 30. Ba1 {[%clk 0:00:49]} 30...
Rdd8 {[%clk 0:00:12.3]} 31. Rxc4 {[%clk 0:00:48.5]} 31... Nb6 {[%clk 0:00:12]}
32. Rcc1 {[%clk 0:00:48.1]} 32... Bxa3 {[%clk 0:00:11.8]} 33. Rc2 {[%clk
0:00:43.2]} 33... Be7 {[%clk 0:00:11.7]} 34. Kg2 {[%clk 0:00:40.1]} 34... Bf6
{[%clk 0:00:11.7]} 35. Rdd2 {[%clk 0:00:33.8]} 1-0

[Event "*** SCC Grand Prix: Titled Tuesday Blitz"]
[Site "Chess.com"]
[Date "2020.06.02"]
[Round "5"]
[White "Jumbo"]
[Black "Sibelephant"]
[Result "0-1"]
[WhiteElo "2839"]
[BlackElo "3168"]
[TimeControl "180+1"]
[EndTime "10:58:18 PDT"]
[Termination "Sibelephant won on time"]

1. d4 {[%clk 0:03:00.9]} 1... d5 {[%clk 0:02:59.6]} 2. c4 {[%clk 0:03:01.4]}
2... c6 {[%clk 0:02:59.8]} 3. Nf3 {[%clk 0:03:02]} 3... Nf6 {[%clk 0:03:00.2]}
4. Qb3 {[%clk 0:03:02.5]} 4... e6 {[%clk 0:02:58.7]} 5. Bg5 {[%clk 0:03:01.7]}
5... Nbd7 {[%clk 0:02:58.2]} 6. e3 {[%clk 0:03:02]} 6... h6 {[%clk 0:02:57.3]}
7. Bh4 {[%clk 0:03:00]} 7... g5 {[%clk 0:02:57.5]} 8. Bg3 {[%clk 0:03:00.1]}
8... Ne4 {[%clk 0:02:58.2]} 9. Nc3 {[%clk 0:02:59.1]} 9... Nxg3 {[%clk
0:02:58.5]} 10. hxg3 {[%clk 0:03:00]} 10... Bg7 {[%clk 0:02:58.9]} 11. O-O-O
{[%clk 0:02:56.7]} 11... Qe7 {[%clk 0:02:59.2]} 12. g4 {[%clk 0:02:54.4]} 12...
a6 {[%clk 0:02:50.2]} 13. Qc2 {[%clk 0:02:35.5]} 13... O-O {[%clk 0:02:38]} 14.
Bd3 {[%clk 0:01:58.5]} 14... dxc4 {[%clk 0:02:37.7]} 15. Bxc4 {[%clk 0:01:58.3]}
15... b5 {[%clk 0:02:38]} 16. Bd3 {[%clk 0:01:58.9]} 16... c5 {[%clk 0:02:38.5]}
17. Bh7+ {[%clk 0:01:54.5]} 17... Kh8 {[%clk 0:02:38.1]} 18. Be4 {[%clk
0:01:54.8]} 18... Rb8 {[%clk 0:02:29]} 19. d5 {[%clk 0:01:54.7]} 19... b4 {[%clk
0:02:13.9]} 20. d6 {[%clk 0:01:22.8]} 20... Qf6 {[%clk 0:02:09.6]} 21. Ne2
{[%clk 0:01:22.8]} 21... c4 {[%clk 0:01:57.4]} 22. Ned4 {[%clk 0:00:25.1]} 22...
Nc5 {[%clk 0:01:44]} 23. Nxg5 {[%clk 0:00:18.2]} 23... b3 {[%clk 0:01:24.6]} 24.
Qxc4 {[%clk 0:00:16.5]} 24... bxa2 {[%clk 0:01:19.5]} 25. Qxa2 {[%clk
0:00:16.4]} 25... Qxf2 {[%clk 0:01:11.8]} 26. Nc2 {[%clk 0:00:11.3]} 26... Bxb2+
{[%clk 0:00:49.1]} 27. Qxb2+ {[%clk 0:00:09.7]} 27... Rxb2 {[%clk 0:00:49.8]}
28. Rxh6+ {[%clk 0:00:08.4]} 28... Kg7 {[%clk 0:00:50.4]} 29. Rh7+ {[%clk
0:00:08.4]} 29... Kg8 {[%clk 0:00:51]} 30. Rdh1 {[%clk 0:00:03.1]} 30... Nxe4
{[%clk 0:00:26.7]} 31. Rh8+ {[%clk 0:00:02.6]} 31... Kg7 {[%clk 0:00:27.4]} 32.
R1h7+ {[%clk 0:00:02.7]} 32... Kg6 {[%clk 0:00:27.9]} 0-1